bitfinex-derivatives/quotes_BNBF0:USTF0_20250709
["timestamp","ask_amount","ask_price","bid_price","bid_amount"]
[1752103215163,3.35448843,669.85,669.01,1.52143591]
[1752103215458,3.35448843,669.85,669.02,1.52143591]
[1752103215757,3.35448843,669.85,669.03,1.52143591]
[1752103215962,3.35448843,669.85,669.04,1.52143591]
[1752103216162,3.35448843,669.85,669.05,1.52143591]
[1752103216360,3.35448843,669.84,669.06,1.52143591]
[1752103216562,3.35448843,669.84,669.07,1.52143591]
[1752103216758,3.35448843,669.84,669.08,1.52143591]
[1752103216962,3.35448843,669.84,669.09,1.52143591]
[1752103217158,3.35448843,669.84,669.1,1.52143591]
[1752103217462,3.35448843,669.84,669.11,1.52143591]
[1752103217759,3.35448843,669.84,669.12,1.52143591]
[1752103217962,3.35448843,669.84,669.13,1.52143591]
[1752103218160,3.35448843,669.83,669.14,1.52143591]
[1752103218361,3.35448843,669.83,669.15,1.52143591]
[1752103218558,3.35448843,669.83,669.16,1.52143591]
[1752103218760,3.35448843,669.83,669.17,1.52143591]
[1752103219062,3.35448843,669.83,669.18,1.52143591]
[1752103219260,3.35448843,669.82,669.19,1.52143591]
[1752103219562,3.35448843,669.83,669.2,1.52143591]
[1752103219762,3.35448843,669.83,669.21,1.52143591]
[1752103219963,3.35448843,669.83,669.22,1.52143591]
[1752103220159,3.35448843,669.83,669.23,1.52143591]
[1752103220460,3.35448843,669.82,669.24,1.52143591]
[1752103220663,3.35448843,669.82,669.25,1.52143591]
[1752103220861,3.35448843,669.82,669.0,2.295]
[1752103221061,3.35448843,669.83,669.01,1.52285552]
[1752103221264,3.35448843,669.82,669.02,1.52285552]
[1752103221560,3.35448843,669.82,669.03,1.52285552]
[1752103221765,3.35448843,669.82,669.04,1.52285552]
[1752103221964,0.25991097,669.88,669.05,1.52285552]
[1752103221965,3.35448843,669.8,669.05,1.52285552]
[1752103222261,3.35448843,669.8,669.06,1.52285552]
[1752103222464,3.35448843,669.8,669.07,1.52285552]
[1752103222665,3.35448843,669.83,669.08,1.52285552]
[1752103222862,3.35448843,669.83,669.09,1.52285552]
[1752103223066,3.35448843,669.83,669.1,1.52285552]
[1752103223366,3.35448843,669.77,669.11,1.52285552]
[1752103223566,3.35448843,669.77,669.12,1.52285552]
[1752103223763,3.35448843,669.75,669.13,1.52285552]
[1752103224064,3.35448843,669.75,669.14,1.52285552]
[1752103224263,3.35448843,669.72,669.15,1.52285552]
[1752103224467,3.35448843,669.72,669.16,1.52285552]
[1752103224767,3.35448843,669.72,669.17,1.52285552]
[1752103224967,3.35448843,669.72,669.18,1.52285552]
[1752103225168,3.35448843,669.72,669.19,1.52285552]
[1752103225368,3.35448843,669.72,669.2,1.52285552]
[1752103225569,3.35448843,669.72,669.21,1.52285552]
[1752103225866,3.35448843,669.72,669.22,1.52285552]
[1752103226066,3.35448843,669.72,669.23,1.52285552]
[1752103226268,3.35448843,669.73,669.24,1.52285552]
[1752103226464,3.35448843,669.73,669.25,1.52285552]
[1752103226668,3.35448843,669.73,669.0,3.96948712]
[1752103226866,3.35448843,669.73,669.01,1.52454175]
[1752103227066,3.35448843,669.73,669.02,1.52454175]
[1752103227269,3.35448843,669.73,669.03,1.52454175]
[1752103227465,3.35448843,669.73,669.04,1.52454175]
[1752103227669,3.35448843,669.73,669.05,1.52454175]
[1752103227870,3.35448843,669.73,669.06,1.52454175]
[1752103228069,3.35448843,669.73,669.07,1.52454175]
[1752103228270,3.35448843,669.73,669.08,1.52454175]
[1752103228466,3.35448843,669.73,669.09,1.52454175]
[1752103228767,3.35448843,669.73,669.1,1.52454175]
[1752103229065,3.35448843,669.73,669.11,1.52454175]
[1752103229265,3.35448843,669.73,669.12,1.52454175]
[1752103229467,3.35448843,669.73,669.13,1.52454175]
[1752103229667,3.35448843,669.73,669.14,1.52454175]
[1752103229870,3.35448843,669.73,669.15,1.52454175]
[1752103230069,3.35448843,669.73,669.16,1.52454175]
[1752103230267,3.35448843,669.73,669.17,1.52454175]
[1752103230467,3.35448843,669.73,669.18,1.52454175]
[1752103230670,3.35448843,669.73,669.19,1.52454175]
[1752103230869,3.35448843,669.73,669.2,1.52454175]
[1752103231069,3.35448843,669.72,669.21,1.52454175]
[1752103231272,3.35448843,669.72,669.22,1.52454175]
[1752103231469,3.35448843,669.72,669.23,1.52454175]
[1752103231671,3.35448843,669.72,669.24,1.52454175]
[1752103231870,3.35448843,669.72,669.0,1.67448712]
[1752103232070,3.35448843,669.72,669.01,1.5241376]
[1752103232269,3.35448843,669.72,669.02,1.5241376]
[1752103232469,3.35448843,669.72,669.03,1.5241376]
[1752103232772,3.35448843,669.72,669.0,1.67448712]
[1752103232773,3.35448843,669.65,669.04,3.19862472]
[1752103232973,3.35448843,669.65,669.05,1.5241376]
[1752103233174,3.35448843,669.65,669.06,1.5241376]
[1752103233368,3.35448843,669.72,669.07,1.5241376]
[1752103233569,3.35448843,669.72,669.08,1.5241376]
[1752103233769,3.35448843,669.73,669.09,1.5241376]
[1752103233972,3.35448843,669.73,669.1,1.5241376]
[1752103234174,3.35448843,669.73,669.11,1.5241376]
[1752103234371,3.35448843,669.73,668.99,1.67448712]
[1752103234577,2.23628778,669.59,668.99,1.67448712]
[1752103235075,2.23628778,669.6,669.0,1.67448712]
[1752103235275,2.23628778,669.6,668.99,1.67448712]
[1752103235475,2.23628778,669.6,669.01,2.318]
[1752103238776,0.25991097,669.88,669.01,2.318]
[1752103239076,2.23628778,669.85,669.01,2.318]
[1752103239675,2.23628778,669.8,669.01,2.318]
[1752103240373,2.23628778,669.81,669.01,2.318]
[1752103240576,2.23628778,669.78,669.01,2.318]
[1752103241172,2.23628778,669.74,669.01,2.318]
[1752103241373,2.23628778,669.76,669.01,2.318]
[1752103241774,2.23628778,669.72,669.01,2.318]
[1752103242180,2.23628778,669.48,669.01,2.318]
[1752103242479,2.23628778,669.49,669.01,2.318]
[1752103242876,2.23628778,669.54,669.01,2.318]
[1752103243276,2.23628778,669.55,669.01,2.318]
[1752103245378,2.23628778,669.53,669.01,2.318]
[1752103245677,2.23628778,669.54,669.01,2.318]
[1752103246675,2.23628778,669.55,669.01,2.318]
[1752103248076,2.23628778,669.6,669.01,2.318]
[1752103248479,2.23628778,669.61,669.01,2.318]
[1752103249876,2.23628778,669.6,669.01,2.318]
[1752103252782,2.23628778,669.59,669.01,2.318]
[1752103255482,2.23628778,669.57,669.01,2.318]
[1752103257280,2.23628778,669.58,669.01,2.318]
[1752103258185,2.23628778,669.57,669.01,2.318]
[1752103261091,2.23628778,669.63,669.01,2.318]
[1752103264592,3.35448843,669.78,669.02,1.5214181]
[1752103264786,3.35448843,669.79,669.03,1.5214181]
[1752103264987,3.35448843,669.79,669.04,1.5214181]
[1752103265192,3.35448843,669.79,669.05,1.5214181]
[1752103265489,3.35448843,669.79,669.06,1.5214181]
[1752103265793,3.35448843,669.79,669.07,1.5214181]
[1752103265991,3.35448843,669.79,669.08,1.5214181]
[1752103266194,3.35448843,669.81,669.09,1.5214181]
[1752103266389,3.35448843,669.8,669.1,1.5214181]
[1752103266593,3.35448843,669.8,669.11,1.5214181]
[1752103266893,3.35448843,669.8,669.12,1.5214181]
[1752103267190,3.35448843,669.8,669.13,1.5214181]
[1752103267389,3.35448843,669.8,669.14,1.5214181]
[1752103267592,3.35448843,669.8,669.15,1.5214181]
[1752103267889,3.35448843,669.8,669.01,2.318]
[1752103267890,3.35448843,669.8,669.16,1.5214181]
[1752103268091,3.35448843,669.8,669.17,1.5214181]
[1752103268393,3.35448843,669.8,669.01,2.318]
[1752103268590,3.35448843,669.8,669.02,1.52165506]
[1752103268890,3.35448843,669.8,669.03,1.52165506]
[1752103269089,3.35448843,669.8,669.04,1.52165506]
[1752103269294,3.35448843,669.8,669.05,1.52165506]
[1752103269591,3.35448843,669.8,669.06,1.52165506]
[1752103269791,3.35448843,669.8,669.07,1.52165506]
[1752103269990,3.35448843,669.8,669.08,1.52165506]
[1752103270193,3.35448843,669.8,669.01,2.318]
[1752103270194,3.35448843,669.8,669.09,1.52165506]
[1752103270392,3.35448843,669.8,669.1,1.52165506]
[1752103270591,3.35448843,669.8,669.11,1.52165506]
[1752103270792,3.35448843,669.8,669.12,1.52165506]
[1752103270993,3.35448843,669.75,669.13,1.52165506]
[1752103271194,3.35448843,669.75,669.14,1.52165506]
[1752103271393,3.35448843,669.75,669.15,1.52165506]
[1752103271598,3.35448843,669.75,669.16,1.52165506]
[1752103271797,3.35448843,669.75,669.17,1.52165506]
[1752103271998,3.35448843,669.75,669.18,1.52165506]
[1752103272197,3.35448843,669.75,669.01,2.318]
[1752103272494,3.35448843,669.75,669.02,1.52194387]
[1752103272698,3.35448843,669.75,669.03,1.52194387]
[1752103272894,3.35448843,669.75,669.04,1.52194387]
[1752103273198,3.35448843,669.75,669.05,1.52194387]
[1752103273396,3.35448843,669.74,669.06,1.52194387]
[1752103273595,3.35448843,669.75,669.07,1.52194387]
[1752103273794,3.35448843,669.75,669.08,1.52194387]
[1752103273999,3.35448843,669.75,669.09,1.52194387]
[1752103274200,3.35448843,669.73,669.1,1.52194387]
[1752103274395,3.35448843,669.73,669.11,1.52194387]
[1752103274699,3.35448843,669.73,669.12,1.52194387]
[1752103274900,3.35448843,669.73,669.13,1.52194387]
[1752103275100,3.35448843,669.72,669.14,1.52194387]
[1752103275300,3.35448843,669.72,669.15,1.52194387]
[1752103275501,3.35448843,669.72,669.16,1.52194387]
[1752103275700,3.35448843,669.72,669.17,1.52194387]
[1752103275997,3.35448843,669.72,669.18,1.52194387]
[1752103276196,3.35448843,669.69,669.01,2.318]
[1752103276396,3.35448843,669.69,669.02,1.52222747]
[1752103276596,3.35448843,669.69,669.03,1.52222747]
[1752103276801,3.35448843,669.69,669.04,1.52222747]
[1752103276996,3.35448843,669.69,669.05,1.52222747]
[1752103277197,3.35448843,669.71,669.06,1.52222747]
[1752103277402,3.35448843,669.71,669.07,1.52222747]
[1752103277601,3.35448843,669.71,669.08,1.52222747]
[1752103277899,3.35448843,669.77,669.09,1.52222747]
[1752103278103,3.35448843,669.77,669.1,1.52222747]
[1752103278302,3.35448843,669.77,669.11,1.52222747]
[1752103278499,3.35448843,669.77,669.12,1.52222747]
[1752103278702,3.35448843,669.77,669.13,1.52222747]
[1752103278903,3.35448843,669.77,669.14,1.52222747]
[1752103279199,3.35448843,669.77,669.15,1.52222747]
[1752103279504,3.35448843,669.77,669.16,1.52222747]
[1752103279705,3.35448843,669.77,669.17,1.52222747]
[1752103279904,3.35448843,669.77,669.18,1.52222747]
[1752103280105,3.35448843,669.77,669.19,1.52222747]
[1752103280306,3.35448843,669.77,668.92,1.67448712]
[1752103280506,3.35448843,669.77,668.93,1.5225219]
[1752103280706,3.35448843,669.77,668.94,1.5225219]
[1752103281002,3.35448843,669.77,668.95,1.5225219]
[1752103281207,3.35448843,669.76,668.96,1.5225219]
[1752103281405,3.35448843,669.76,668.97,1.5225219]
[1752103281603,3.35448843,669.76,668.98,1.5225219]
[1752103281803,3.35448843,669.76,668.99,1.5225219]
[1752103282006,3.35448843,669.76,669.0,1.5225219]
[1752103282204,3.35448843,669.76,669.01,1.5225219]
[1752103282507,3.35448843,669.76,669.02,1.5225219]
[1752103282707,3.35448843,669.76,669.03,1.5225219]
[1752103282907,3.35448843,669.76,669.04,1.5225219]
[1752103283104,3.35448843,669.76,669.05,1.5225219]
[1752103283308,3.35448843,669.76,669.06,1.5225219]
[1752103283508,3.35448843,669.76,669.07,1.5225219]
[1752103283707,3.35448843,669.76,669.08,1.5225219]
[1752103283907,3.35448843,669.76,669.09,1.5225219]
[1752103284203,3.35448843,669.76,669.1,1.5225219]
[1752103284407,3.35448843,669.76,668.93,3.98948712]
[1752103284408,3.35448843,669.76,669.11,1.5225219]
[1752103284609,3.35448843,669.76,669.12,1.5225219]
[1752103284904,3.35448843,669.76,669.13,1.5225219]
[1752103285107,3.35448843,669.76,669.14,1.5225219]
[1752103285303,3.35448843,669.76,669.15,1.5225219]
[1752103285507,3.35448843,669.75,669.16,1.5225219]
[1752103285703,3.35448843,669.75,669.17,1.5225219]
[1752103286005,3.35448843,669.75,669.18,1.5225219]
[1752103286204,3.35448843,669.75,669.19,1.5225219]
[1752103286404,3.35448843,669.75,669.2,1.5225219]
[1752103286605,3.35448843,669.75,668.94,1.67448712]
[1752103286907,3.35448843,669.75,668.95,1.52285289]
[1752103287109,3.35448843,669.74,668.96,1.52285289]
[1752103287409,3.35448843,669.74,668.97,1.52285289]
[1752103287603,3.35448843,669.74,668.94,1.67448712]
[1752103287604,3.35448843,669.65,668.99,1.67448712]
[1752103287804,3.35448843,669.65,669.0,1.52285289]
[1752103288106,3.35448843,669.65,669.01,1.52285289]
[1752103288405,3.35448843,669.65,669.02,1.52285289]
[1752103288603,3.35448843,669.65,669.03,1.52285289]
[1752103288807,3.35448843,669.65,669.04,1.52285289]
[1752103289005,3.35448843,669.65,669.05,1.52285289]
[1752103289205,3.35448843,669.65,669.06,1.52285289]
[1752103289407,3.35448843,669.65,669.07,1.52285289]
[1752103289606,3.35448843,669.65,669.08,1.52285289]
[1752103289809,3.35448843,669.65,669.09,1.52285289]
[1752103290009,3.35448843,669.65,669.1,1.52285289]
[1752103290209,3.35448843,669.65,669.11,1.52285289]
[1752103290405,3.35448843,669.65,669.12,1.52285289]
[1752103290607,3.35448843,669.65,669.13,1.52285289]
[1752103290807,3.35448843,669.65,669.14,1.52285289]
[1752103291110,3.35448843,669.65,669.15,1.52285289]
[1752103291409,3.35448843,669.65,669.16,1.52285289]
[1752103291606,3.35448843,669.65,669.17,1.52285289]
[1752103291807,3.35448843,669.65,669.18,1.52285289]
[1752103292007,3.35448843,669.65,669.19,1.52285289]
[1752103292206,3.35448843,669.65,669.2,1.52285289]
[1752103292410,3.35448843,669.65,668.99,1.67448712]
[1752103292610,3.35448843,669.65,669.0,1.52298812]
[1752103292807,3.35448843,669.65,669.01,1.52298812]
[1752103293007,3.35448843,669.65,669.02,1.52298812]
[1752103293211,3.35448843,669.65,669.03,1.52298812]
[1752103293507,3.35448843,669.65,669.04,1.52298812]
[1752103293711,3.35448843,669.65,669.05,1.52298812]
[1752103293909,3.35448843,669.65,669.06,1.52298812]
[1752103294112,3.35448843,669.65,669.07,1.52298812]
[1752103294307,3.35448843,669.65,669.08,1.52298812]
[1752103294511,3.35448843,669.65,669.09,1.52298812]
[1752103294712,3.35448843,669.65,669.1,1.52298812]
[1752103294909,3.35448843,669.65,669.11,1.52298812]
[1752103295212,3.35448843,669.65,669.12,1.52298812]
[1752103295408,3.35448843,669.64,669.13,1.52298812]
[1752103295612,3.35448843,669.63,669.14,1.52298812]
[1752103295812,3.35448843,669.63,669.15,1.52298812]
[1752103296011,3.35448843,669.63,669.16,1.52298812]
[1752103296211,3.35448843,669.63,669.17,1.52298812]
[1752103296512,3.35448843,669.63,669.18,1.52298812]
[1752103296718,3.35448843,669.63,669.19,1.52298812]
[1752103296916,3.35448843,669.63,669.2,1.52298812]
[1752103297113,3.35448843,669.63,669.01,1.67448712]
[1752103297415,3.35448843,669.63,669.02,1.52559091]
[1752103297615,3.35448843,669.63,669.03,1.52559091]
[1752103297818,3.35448843,669.63,669.04,1.52559091]
[1752103298018,3.35448843,669.63,669.05,1.52559091]
[1752103298218,3.35448843,669.63,669.06,1.52559091]
[1752103298420,3.35448843,669.63,669.07,1.52559091]
[1752103298619,3.35448843,669.63,669.08,1.52559091]
[1752103298821,3.35448843,669.63,669.09,1.52559091]
[1752103299020,3.35448843,669.63,669.1,1.52559091]
[1752103299222,3.35448843,669.63,669.11,1.52559091]
[1752103299421,3.35448843,669.63,669.12,1.52559091]
[1752103299621,3.35448843,669.63,669.13,1.52559091]
[1752103299822,3.35448843,669.63,669.14,1.52559091]
[1752103300022,3.35448843,669.63,669.15,1.52559091]
[1752103300322,3.35448843,669.65,669.16,1.52559091]
[1752103300521,3.35448843,669.64,669.17,1.52559091]
[1752103300716,3.35448843,669.64,669.18,1.52559091]
[1752103300919,3.35448843,669.64,669.19,1.52559091]
[1752103301118,3.35448843,669.65,669.2,1.52559091]
[1752103301318,0.25991097,669.88,668.93,2.315]
[1752103301319,3.35448843,669.64,669.21,1.52559091]
[1752103301518,3.35448843,669.64,669.01,1.67448712]
[1752103301720,3.35448843,669.64,669.02,1.5261333]
[1752103301919,3.35448843,669.64,669.03,1.5261333]
[1752103302124,3.35448843,669.64,669.04,1.5261333]
[1752103302423,3.35448843,669.64,668.93,2.315]
[1752103302623,3.35448843,669.63,669.02,1.6793301]
[1752103302819,3.35448843,669.63,669.03,1.52653012]
[1752103303020,3.35448843,669.63,669.04,1.52653012]
[1752103303223,3.35448843,669.63,669.05,1.52653012]
[1752103303419,3.35448843,669.63,669.06,1.52653012]
[1752103303720,3.35448843,669.63,669.07,1.52653012]
[1752103303919,3.35448843,669.63,669.08,1.52653012]
[1752103304223,3.35448843,669.63,669.09,1.52653012]
[1752103304420,3.35448843,669.67,669.1,1.52653012]
[1752103304723,3.35448843,669.67,669.11,1.52653012]
[1752103304920,3.35448843,669.67,669.12,1.52653012]
[1752103305124,3.35448843,669.67,669.0,1.6793301]
[1752103305125,3.35448843,669.67,669.13,1.52653012]
[1752103305420,3.35448843,669.64,669.14,1.52653012]
[1752103305623,3.35448843,669.64,669.02,1.6793301]
[1752103305624,3.35448843,669.64,669.15,1.52653012]
[1752103305823,3.35448843,669.64,669.16,1.52653012]
[1752103306021,3.35448843,669.64,669.17,1.52653012]
[1752103306223,3.35448843,669.64,669.18,1.52653012]
[1752103306418,3.35448843,669.64,669.19,1.52653012]
[1752103306620,3.35448843,669.64,669.2,1.52653012]
[1752103306920,3.35448843,669.64,669.21,1.52653012]
[1752103307123,3.35448843,669.64,669.22,1.52653012]
[1752103307323,3.35448843,669.63,669.23,1.52653012]
[1752103307626,3.35448843,669.63,669.24,1.52653012]
[1752103307924,3.35448843,669.63,669.03,1.6793301]
[1752103308121,3.35448843,669.63,669.04,1.52747411]
[1752103308320,3.35448843,669.63,669.05,1.52747411]
[1752103308524,3.35448843,669.63,669.06,1.52747411]
[1752103308820,3.35448843,669.63,669.07,1.52747411]
[1752103309022,3.35448843,669.63,669.08,1.52747411]
[1752103309321,3.35448843,669.63,669.09,1.52747411]
[1752103309526,3.35448843,669.63,669.1,1.52747411]
[1752103309722,3.35448843,669.63,669.11,1.52747411]
[1752103309923,3.35448843,669.63,669.12,1.52747411]
[1752103310124,3.35448843,669.63,669.13,1.52747411]
[1752103310423,3.35448843,669.63,669.14,1.52747411]
[1752103310620,3.35448843,669.81,669.15,1.52747411]
[1752103310825,3.35448843,669.81,669.16,1.52747411]
[1752103311024,3.35448843,669.84,669.17,1.52747411]
[1752103311225,3.35448843,669.84,669.18,1.52747411]
[1752103311427,3.35448843,669.84,669.19,1.52747411]
[1752103311627,3.35448843,669.86,669.2,1.52747411]
[1752103311825,3.35448843,669.86,668.95,1.6793301]
[1752103311826,3.35448843,669.86,669.21,1.52747411]
[1752103312130,3.35448843,669.86,669.22,1.52747411]
[1752103312329,3.35448843,669.86,669.23,1.52747411]
[1752103312629,3.35448843,669.86,669.24,1.52747411]
[1752103312826,3.35448843,669.86,669.25,1.52747411]
[1752103313025,3.35448843,669.86,669.26,1.52747411]
[1752103313225,3.35448843,669.86,669.27,1.52747411]
[1752103313426,3.35448843,669.86,668.94,1.6793301]
[1752103313725,3.35448843,669.86,668.95,1.52707603]
[1752103314028,3.35448843,669.86,668.96,1.52707603]
[1752103314226,3.35448843,669.86,668.97,1.52707603]
[1752103314425,3.35448843,669.86,668.98,1.52707603]
[1752103314627,3.35448843,669.84,668.99,1.52707603]
[1752103314829,3.35448843,669.84,669.0,1.52707603]
[1752103315028,3.35448843,669.83,669.01,1.52707603]
[1752103315231,3.35448843,669.83,669.02,1.52707603]
[1752103315430,3.35448843,669.83,669.03,1.52707603]
[1752103315728,3.35448843,669.83,669.04,1.52707603]
[1752103316027,3.35448843,669.83,669.05,1.52707603]
[1752103316331,3.35448843,669.83,669.06,1.52707603]
[1752103316533,3.35448843,669.83,669.07,1.52707603]
[1752103316732,3.35448843,669.83,669.08,1.52707603]
[1752103316931,3.35448843,669.83,669.09,1.52707603]
[1752103317130,3.35448843,669.83,669.1,1.52707603]
[1752103317329,3.35448843,669.83,669.11,1.52707603]
[1752103317533,3.35448843,669.83,669.12,1.52707603]
[1752103317733,3.35448843,669.83,669.13,1.52707603]
[1752103317933,3.35448843,669.83,669.14,1.52707603]
[1752103318134,3.35448843,669.83,669.15,1.52707603]
[1752103318330,3.35448843,669.83,669.16,1.52707603]
[1752103318633,3.35448843,669.83,669.17,1.52707603]
[1752103318830,3.35448843,669.83,669.18,1.52707603]
[1752103319030,3.35448843,669.83,669.19,1.52707603]
[1752103319236,3.35448843,669.83,669.2,1.52707603]
[1752103319434,3.35448843,669.83,669.21,1.52707603]
[1752103319730,3.35448843,669.83,669.22,1.52707603]
[1752103319929,3.35448843,669.83,669.23,1.52707603]
[1752103320132,3.35448843,669.83,669.24,1.52707603]
[1752103320430,3.35448843,669.74,669.19,2.693]
[1752103320635,3.35448843,669.74,669.2,1.52707425]
[1752103320834,3.35448843,669.74,669.21,1.52707425]
[1752103321033,3.35448843,669.74,669.22,1.52707425]
[1752103321242,3.35448843,669.74,669.23,1.52707425]
[1752103321536,3.35448843,669.66,669.19,2.693]
[1752103321832,3.35448843,669.66,669.2,1.52707472]
[1752103322136,3.35448843,669.67,669.21,1.52707472]
[1752103322436,3.35448843,669.67,669.22,1.52707472]
[1752103322634,3.35448843,669.67,669.23,1.52707472]
[1752103322833,3.35448843,669.67,669.19,2.693]
[1752103323133,3.35448843,669.67,669.2,1.5270752]
[1752103323334,3.35448843,669.67,669.21,1.5270752]
[1752103323536,3.35448843,669.67,669.22,1.5270752]
[1752103323736,3.35448843,669.67,669.23,1.5270752]
[1752103323937,3.35448843,669.67,669.24,1.5270752]
[1752103324134,3.35448843,669.67,669.19,2.693]
[1752103324340,3.35448843,669.7,669.2,1.52708015]
[1752103324538,3.35448843,669.7,669.21,1.52708015]
[1752103324740,3.35448843,669.7,669.22,1.52708015]
[1752103324936,3.35448843,669.7,669.23,1.52708015]
[1752103325141,3.35448843,669.7,669.24,1.52708015]
[1752103325438,3.35448843,669.71,669.19,2.693]
[1752103325739,3.35448843,669.71,669.2,1.52812521]
[1752103326042,3.35448843,669.71,669.21,1.52812521]
[1752103326341,3.35448843,669.71,669.22,1.52812521]
[1752103326537,3.35448843,669.71,669.23,1.52812521]
[1752103326740,3.35448843,669.71,669.24,1.52812521]
[1752103326937,3.35448843,669.71,669.19,2.693]
[1752103327141,3.35448843,669.71,669.2,1.52812573]
[1752103327341,3.35448843,669.71,669.21,1.52812573]
[1752103327539,3.35448843,669.71,669.22,1.52812573]
[1752103327744,3.35448843,669.71,669.23,1.52812573]
[1752103328040,3.35448843,669.71,669.24,1.52812573]
[1752103328243,3.35448843,669.71,669.19,2.693]
[1752103328444,3.35448843,669.71,669.2,1.52813089]
[1752103328639,3.35448843,669.71,669.21,1.52813089]
[1752103328842,3.35448843,669.71,669.22,1.52813089]
[1752103329045,3.35448843,669.72,669.23,1.52813089]
[1752103329245,3.35448843,669.72,669.24,1.52813089]
[1752103329442,3.35448843,669.72,669.19,2.693]
[1752103329641,3.35448843,669.72,669.2,1.52812788]
[1752103329845,3.35448843,669.72,669.21,1.52812788]
[1752103330040,3.35448843,669.72,669.22,1.52812788]
[1752103330245,3.35448843,669.72,669.23,1.52812788]
[1752103330441,3.35448843,669.72,669.24,1.52812788]
[1752103330641,3.35448843,669.72,669.19,2.693]
[1752103330845,3.35448843,669.72,669.2,1.52812863]
[1752103331043,3.35448843,669.72,669.21,1.52812863]
[1752103331244,3.35448843,669.72,669.22,1.52812863]
[1752103331543,3.35448843,669.72,669.23,1.52812863]
[1752103331742,3.35448843,669.72,669.24,1.52812863]
[1752103331943,3.35448843,669.72,669.19,2.693]
[1752103332147,3.35448843,669.72,669.2,1.52812941]
[1752103332447,3.35448843,669.72,669.21,1.52812941]
[1752103332643,3.35448843,669.72,669.22,1.52812941]
[1752103332842,3.35448843,669.72,669.23,1.52812941]
[1752103333044,3.35448843,669.72,669.24,1.52812941]
[1752103333243,3.35448843,669.72,669.19,2.693]
[1752103333444,3.35448843,669.72,669.2,1.52813462]
[1752103333643,3.35448843,669.72,669.21,1.52813462]
[1752103333843,3.35448843,669.72,669.22,1.52813462]
[1752103334043,3.35448843,669.69,669.23,1.52813462]
[1752103334243,3.35448843,669.69,669.24,1.52813462]
[1752103334444,3.35448843,669.69,669.19,2.693]
[1752103334744,3.35448843,669.69,669.2,1.52813216]
[1752103334947,3.35448843,669.69,669.21,1.52813216]
[1752103335148,3.35448843,669.66,669.22,1.52813216]
[1752103335344,3.35448843,669.66,669.19,2.693]
[1752103335345,3.35448843,669.64,669.23,1.52813216]
[1752103335545,3.35448843,669.64,669.24,1.52813216]
[1752103335746,3.35448843,669.63,669.19,2.693]
[1752103335951,3.35448843,669.63,669.2,1.52813318]
[1752103336149,3.35448843,669.63,669.21,1.52813318]
[1752103336446,3.35448843,669.63,669.22,1.52813318]
[1752103336647,3.35448843,669.86,669.23,1.52813318]
[1752103336844,3.35448843,669.86,669.24,1.52813318]
[1752103337045,3.35448843,669.86,669.19,2.693]
[1752103337249,3.35448843,669.86,669.2,1.52813847]
[1752103337549,3.35448843,669.84,669.21,1.52813847]
[1752103337846,3.35448843,669.84,669.22,1.52813847]
[1752103338049,3.35448843,669.84,669.23,1.52813847]
[1752103338349,3.35448843,669.84,669.19,2.693]
[1752103338546,3.35448843,669.84,669.2,1.52814582]
[1752103338749,3.35448843,669.84,669.21,1.52814582]
[1752103338950,3.35448843,669.84,669.22,1.52814582]
[1752103339150,3.35448843,669.84,669.19,2.693]
[1752103339350,3.35448843,669.84,669.2,1.52812598]
[1752103339551,3.35448843,669.84,669.21,1.52812598]
[1752103339753,3.35448843,669.84,669.22,1.52812598]
[1752103340050,3.35448843,669.84,669.19,2.693]
[1752103340255,3.35448843,669.84,669.2,1.52810382]
[1752103340453,3.35448843,669.84,669.21,1.52810382]
[1752103340657,3.35448843,669.84,669.22,1.52810382]
[1752103340856,3.35448843,669.84,669.19,2.693]
[1752103341057,3.35448843,669.84,669.2,1.52809936]
[1752103341352,3.35448843,669.84,669.21,1.52809936]
[1752103341558,3.35448843,669.84,669.22,1.52809936]
[1752103341758,3.35448843,669.84,669.19,2.693]
[1752103341954,3.35448843,669.84,669.2,1.52807785]
[1752103342252,3.35448843,669.84,669.21,1.52807785]
[1752103342451,3.35448843,669.84,669.22,1.52807785]
[1752103342756,3.35448843,669.84,669.19,2.693]
[1752103342953,3.35448843,669.84,669.2,1.52805792]
[1752103343154,3.35448843,669.84,669.21,1.52805792]
[1752103343354,3.35448843,669.84,669.22,1.52805792]
[1752103343556,3.35448843,669.84,669.19,2.693]
[1752103343758,3.35448843,669.85,669.2,1.52803975]
[1752103343956,3.35448843,669.85,669.21,1.52803975]
[1752103344155,3.35448843,669.84,669.22,1.52803975]
[1752103344353,3.35448843,669.85,669.19,2.693]
[1752103344556,3.35448843,669.85,669.2,1.52802253]
[1752103344754,3.35448843,669.85,669.21,1.52802253]
[1752103344954,3.35448843,669.85,669.22,1.52802253]
[1752103345156,3.35448843,669.86,669.19,2.693]
[1752103345355,3.35448843,669.86,669.2,1.52801113]
[1752103345559,3.35448843,669.86,669.21,1.52801113]
[1752103345755,3.35448843,669.86,669.22,1.52801113]
[1752103345956,3.35448843,669.86,669.19,2.693]
[1752103346160,3.35448843,669.86,669.2,1.52800547]
[1752103346358,3.35448843,669.86,669.21,1.52800547]